[Event "3rd Sharjah Masters 2019"]
[Site "Sharjah"]
[Date "2019.03.30"]
[Round "9.46"]
[White "Gandhi, Anish"]
[Black "Priyanka Nutakki"]
[Result "1/2-1/2"]
[ECO "C11"]
[WhiteElo "2156"]
[BlackElo "2297"]
[Annotator "NA"]
[PlyCount "62"]
[EventDate "2019.03.22"]
[EventType "swiss"]
[EventCountry "UAE"]
[SourceTitle "playchess.com"]
[Source "ChessBase"]
[SourceQuality "1"]
[TimeControl "5400+30"]

1. e4 {[%emt 0:00:00]} e6 {[%emt 0:00:00]} 2. d4 {[%emt 0:00:00]} d5 {[%emt 0:00:00]} 3. Nc3 {[%emt 0:00:00]} Nf6 {[%emt 0:00:00]} 4. e5 {[%emt 0:00:00]} Nfd7 {[%emt 0:00:00]} 5. f4 {[%emt 0:00:00]} c5 {[%emt 0:00:00]} 6. Nf3 {[%emt 0:00:12]} Nc6 {[%emt 0:00:04]} 7. Be3 {[%emt 0:00:04]} Be7 {[%emt 0:00:04]} 8. Qd2 {[%emt 0:00:10]} O-O $11 {[%emt 0:00:09]} 9. dxc5 {[%emt 0:00:04] LiveBook: 510 Games} Qa5 {[%emt 0:02:35]} 10. O-O-O {[%emt 0:00:42]} b6 {[%emt 0:00:23]} 11. Bb5 {[%emt 0:00:20]} Nb4 {[%emt 0:00:41]} 12. a3 {[%emt 0:04:54]} bxc5 {[%emt 0:02:20]} 13. Kb1 {[%emt 0:01:07]} Rb8 {[%emt 0:01:38]} 14. axb4 {[%emt 0:01:19]} cxb4 {[%emt 0:01:27]} 15. Nxd5 {[%emt 0:00:38]} exd5 {[%emt 0:00:35]} 16. Nd4 {[%emt 0:00:48]} Bc5 {[%emt 0:02:12]} 17. Bxd7 {[%emt 0:04:49]} Bxd7 {[%emt 0:05:26]} 18. Nb3 {[%emt 0:00:54]} Bxe3 {[%emt 0:00:08]} 19. Qxe3 {[%emt 0:02:52]} Qb6 {[%emt 0:14:51]} 20. Qxb6 {[%emt 0:18:43]} Rxb6 {[%emt 0:00:13]} 21. Nd4 {[%emt 0:03:02]} g6 {[%emt 0:07:58]} 22. b3 {[%emt 0:02:44]} a5 {[%emt 0:01:44]} 23. Kb2 {[%emt 0:04:49]} Rc8 {[%emt 0:02:18]} 24. Ra1 {[%emt 0:07:02]} Rc5 {[%emt 0:00:19]} 25. h3 {[%emt 0:02:02]} h5 {[%emt 0:03:59]} 26. Rhg1 {[%emt 0:00:22]} h4 {[%emt 0:01:33]} 27. Rgf1 {[%emt 0:01:50]} Bf5 {[%emt 0:18:56]} 28. Rf2 {[%emt 0:17:51]} Kf8 {[%emt 0:08:33]} 29. Rd1 {[%emt 0:07:18]} Ra6 {[%emt 0:11:31]} 30. Nxf5 {[%emt 0:10:35]} gxf5 {[%emt 0:02:43]} 31. Rd3 {[%emt 0:00:34]} Ke7 {[%emt 0:03:06]} 1/2-1/2

[Event "3rd Sharjah Masters 2019"]
[Site "Sharjah"]
[Date "2019.03.30"]
[Round "9.47"]
[White "Sultan, Ibrahim"]
[Black "Koniahli, Malek."]
[Result "0-1"]
[ECO "A61"]
[WhiteElo "2121"]
[BlackElo "2294"]
[Annotator "NA"]
[PlyCount "106"]
[EventDate "2019.03.22"]
[EventType "swiss"]
[EventCountry "UAE"]
[SourceTitle "playchess.com"]
[Source "ChessBase"]
[SourceQuality "1"]
[TimeControl "5400+30"]

1. d4 {[%emt 0:07:57]} Nf6 {[%emt 0:00:00]} 2. c4 {[%emt 0:00:54]} c5 {[%emt 0:01:15]} 3. d5 {[%emt 0:00:06]} e6 {[%emt 0:00:02]} 4. Nc3 {[%emt 0:00:10]} exd5 {[%emt 0:00:04]} 5. cxd5 {[%emt 0:00:04]} d6 {[%emt 0:00:05]} 6. Nf3 {[%emt 0:00:03]} g6 {[%emt 0:00:05]} 7. Bf4 {[%emt 0:00:30]} Bg7 {[%emt 0:00:24]} 8. h3 {[%emt 0:00:05]} O-O {[%emt 0:00:05]} 9. e3 {[%emt 0:00:06]} a6 {[%emt 0:10:49]} 10. a4 {[%emt 0:00:14]} b6 {[%emt 0:00:06]} 11. Nd2 {[%emt 0:00:53]} Nh5 {[%emt 0:26:51]} 12. Bh2 {[%emt 0:00:18]} Be5 {[%emt 0:00:15]} 13. Bxe5 {[%emt 0:10:39]} dxe5 {[%emt 0:00:01]} 14. Nc4 {[%emt 0:00:23]} Nd7 {[%emt 0:03:17]} 15. Be2 {[%emt 0:25:51]} Nhf6 {[%emt 0:02:55]} 16. e4 {[%emt 0:00:56]} Ne8 {[%emt 0:02:04]} 17. O-O {[%emt 0:03:32]} Qf6 {[%emt 0:06:37]} 18. Bg4 {[%emt 0:11:54]} Nd6 {[%emt 0:03:48]} 19. b3 {[%emt 0:00:36]} Rb8 {[%emt 0:02:32]} 20. Qe2 {[%emt 0:01:54]} Rd8 {[%emt 0:05:46]} 21. Rae1 {[%emt 0:06:41]} Qe7 {[%emt 0:11:15]} 22. f4 {[%emt 0:02:10]} Nxc4 {[%emt 0:01:25]} 23. bxc4 {[%emt 0:00:32]} Nf6 {[%emt 0:00:34]} 24. Bxc8 {[%emt 0:03:53]} Rbxc8 {[%emt 0:00:20]} 25. Qf3 {[%emt 0:04:45]} Rd6 {[%emt 0:02:03]} 26. g4 {[%emt 0:10:13]} Nd7 {[%emt 0:01:20]} 27. f5 {[%emt 0:00:19]} g5 {[%emt 0:05:21]} 28. Kg2 {[%emt 0:00:29]} Kg7 {[%emt 0:02:09]} 29. Qe3 {[%emt 0:00:19]} Qf6 {[%emt 0:00:45]} 30. Ne2 {[%emt 0:00:35]} h6 {[%emt 0:01:21]} 31. Ng3 {[%emt 0:00:26]} Kh7 {[%emt 0:02:06]} 32. Rh1 {[%emt 0:00:47]} Qe7 {[%emt 0:00:56]} 33. Ne2 {[%emt 0:01:12]} Nf6 {[%emt 0:00:24]} 34. Ng1 {[%emt 0:00:16]} b5 {[%emt 0:00:39]} 35. cxb5 {[%emt 0:00:54]} axb5 {[%emt 0:00:01]} 36. axb5 {[%emt 0:00:06]} Qb7 {[%emt 0:00:14]} 37. Nf3 {[%emt 0:01:38]} Qxb5 {[%emt 0:00:10]} 38. Nxe5 {[%emt 0:01:05]} Qb2+ {[%emt 0:00:10]} 39. Qe2 {[%emt 0:00:36]} Qxe5 {[%emt 0:00:02]} 40. h4 {[%emt 0:00:06]} gxh4 {[%emt 0:01:05]} 41. Rxh4 {[%emt 0:00:05]} Rg8 {[%emt 0:00:11]} 42. Kf3 {[%emt 0:00:50]} Rb6 {[%emt 0:00:37]} 43. Qe3 {[%emt 0:00:31]} Nd7 {[%emt 0:02:15]} 44. Reh1 {[%emt 0:00:08]} Qg7 {[%emt 0:00:19]} 45. Kg2 {[%emt 0:03:17]} Rgb8 {[%emt 0:03:01]} 46. g5 {[%emt 0:02:20]} Rb2+ {[%emt 0:00:00]} 47. Kf3 {[%emt 0:01:23]} Ne5+ {[%emt 0:00:48]} 48. Kg3 {[%emt 0:00:12]} R8b3 {[%emt 0:00:20]} 49. Rxh6+ {[%emt 0:00:56]} Kg8 {[%emt 0:00:08]} 50. Kf4 {[%emt 0:00:36]} Rxe3 {[%emt 0:00:37]} 51. f6 {[%emt 0:00:21]} Rf3+ {[%emt 0:00:30]} 52. Kxe5 {[%emt 0:00:04]} Qxg5+ {[%emt 0:00:06]} 53. Kd6 {[%emt 0:00:04]} Rxf6+ {[%emt 0:00:08]} 0-1